bitfinex-derivatives/quotes_BTCF0:USTF0_20241008
["timestamp","ask_amount","ask_price","bid_price","bid_amount"]
[1728383788051,0.2248501,62490.0,62489.0,0.080034]
[1728383788344,0.5856501,62490.0,62489.0,0.080034]
[1728383800552,0.6656821,62490.0,62489.0,0.080034]
[1728383800744,0.5856501,62490.0,62489.0,0.080034]
[1728383806151,0.3748,62490.0,62489.0,0.200034]
[1728383810051,0.3748,62490.0,62489.0,0.22845644]
[1728383814753,0.3748,62490.0,62489.0,0.200034]
[1728383815152,0.3748,62490.0,62489.0,0.080034]
[1728383820360,0.00120001,62494.0,62489.0,1.640914]
[1728383820562,0.3608,62496.0,62489.0,1.640914]
[1728383820563,0.3608,62496.0,62493.0,0.200028]
[1728383820764,0.3608,62496.0,62495.0,0.080026]
[1728383821158,0.3608,62496.0,62495.0,0.560066]
[1728383821765,0.3748,62496.0,62495.0,0.560066]
[1728383821954,0.014,62496.0,62495.0,0.560066]
[1728383822157,0.014,62496.0,62495.0,1.160066]
[1728383822355,0.3608,62507.0,62496.0,0.080025]
[1728383822554,0.3608,62507.0,62502.0,0.080017]
[1728383822758,0.3608,62507.0,62506.0,0.080012]
[1728383822972,0.3608,62507.0,62506.0,0.200012]
[1728383824265,0.36072,62507.0,62506.0,0.200012]
[1728383824861,0.36572,62507.0,62506.0,0.201012]
[1728383825063,0.005,62507.0,62506.0,0.201012]
[1728383825265,0.01,62507.0,62506.0,0.202012]
[1728383830768,0.01,62507.0,62506.0,0.23080094]
[1728383833468,0.00240003,62520.0,62517.0,0.079998]
[1728383833667,0.00240003,62520.0,62517.0,0.199998]
[1728383833870,0.02866586,62519.0,62517.0,0.199998]
[1728383834570,0.0445,62518.0,62517.0,0.200998]
[1728383835275,0.0445,62518.0,62517.0,0.201998]
[1728383835276,0.0555,62518.0,62517.0,0.201998]
[1728383837377,0.0555,62518.0,62512.0,0.441683]
[1728383837378,1.624138,62518.0,62512.0,0.00088]
[1728383837678,0.080008,62511.0,62510.0,0.080006]
[1728383837875,0.560808,62511.0,62510.0,0.080006]
[1728383839180,0.562808,62511.0,62510.0,0.081006]
[1728383840476,0.570808,62511.0,62510.0,0.082006]
[1728383841786,0.210008,62511.0,62510.0,0.082006]
[1728383841974,0.570808,62511.0,62510.0,0.082006]
[1728383847680,0.5993151,62511.0,62510.0,0.082006]
[1728383850185,0.2385151,62511.0,62510.0,0.082006]
[1728383854393,0.30419374,62511.0,62510.0,0.082006]
[1728383854690,0.2385151,62511.0,62510.0,0.082006]
[1728383861491,0.1185151,62511.0,62510.0,0.082006]
[1728383869400,0.1841931,62511.0,62510.0,0.082006]
[1728383870101,0.1185151,62511.0,62510.0,0.082006]
[1728383871607,0.1841931,62511.0,62510.0,0.082006]
[1728383872103,0.1185151,62511.0,62510.0,0.082006]
[1728383872308,0.1841931,62511.0,62510.0,0.082006]
[1728383876902,0.3041931,62511.0,62510.0,0.082006]
[1728383877312,0.2385151,62511.0,62510.0,0.082006]
[1728383877706,0.5993151,62511.0,62510.0,0.082006]
[1728383878412,0.2385151,62511.0,62510.0,0.082006]
[1728383878602,0.5993151,62511.0,62510.0,0.082006]
[1728383880405,0.2385151,62511.0,62510.0,0.082006]
[1728383883106,0.1185151,62511.0,62510.0,0.082006]
[1728383884407,0.1841933,62511.0,62510.0,0.082006]
[1728383885211,0.1841933,62511.0,62510.0,0.06943583]
[1728383886413,0.1841933,62511.0,62504.0,0.00239978]
[1728383886618,0.440813,62505.0,62504.0,0.08241378]
[1728383886819,0.5064912,62505.0,62504.0,0.08241378]
[1728383887006,0.5710912,62505.0,62504.0,0.08241378]
[1728383887819,0.5710912,62505.0,62504.0,0.08341378]
[1728383888215,0.5710912,62505.0,62504.0,0.08441378]
[1728383888613,0.5790912,62505.0,62504.0,0.08441378]
[1728383888817,0.5870912,62505.0,62504.0,0.08441378]
[1728383889213,0.5070782,62505.0,62495.0,0.3608]
[1728383889420,0.080021,62502.0,62501.0,0.080018]
[1728383889718,0.1456992,62502.0,62501.0,0.080018]
[1728383890908,0.6264992,62502.0,62501.0,0.080018]
[1728383891611,0.6264992,62502.0,62501.0,0.081018]
[1728383891612,0.6374992,62502.0,62501.0,0.081018]
[1728383891912,0.6464992,62502.0,62501.0,0.082018]
[1728383892321,0.580821,62502.0,62501.0,0.082018]
[1728383893925,0.08003,62493.0,62491.0,0.08003]
[1728383894127,0.08003,62493.0,62492.0,0.080026]
[1728383894517,0.20003,62493.0,62492.0,0.080026]
[1728383895033,0.20903,62493.0,62492.0,0.080026]
[1728383895222,0.21703,62493.0,62492.0,0.080026]
[1728383895731,0.21703,62493.0,62492.0,0.081026]
[1728383897026,0.21703,62493.0,62492.0,0.082026]
[1728383900634,0.137,62493.0,62492.0,0.082026]
[1728383900825,0.217028,62493.0,62492.0,0.082026]
[1728383901918,0.24655156,62493.0,62492.0,0.082026]
[1728383903420,0.24655156,62493.0,62492.0,0.202026]
[1728383903421,0.04652356,62493.0,62492.0,0.202026]
[1728383903729,0.017,62493.0,62492.0,0.202026]
[1728383910430,0.017,62493.0,62492.0,0.23141355]
[1728383911722,0.008,62493.0,62492.0,0.23141355]
[1728383911922,0.06569032,62515.0,62508.0,0.080009]
[1728383912129,0.110696,62519.0,62518.0,0.079996]
[1728383912637,0.230696,62519.0,62518.0,0.079996]
[1728383912941,0.1507,62519.0,62518.0,0.079996]
[1728383914038,0.241695,62519.0,62518.0,0.081996]
[1728383914226,0.243695,62519.0,62518.0,0.081996]
[1728383919438,0.604495,62519.0,62518.0,0.081996]
[1728383920433,0.243695,62519.0,62518.0,0.081996]
[1728383920639,0.604495,62519.0,62518.0,0.081996]
[1728383923752,0.243695,62519.0,62518.0,0.081996]
[1728383924049,0.604495,62519.0,62518.0,0.081996]
[1728383925540,0.243695,62519.0,62518.0,0.081996]
[1728383925744,0.604495,62519.0,62518.0,0.081996]
[1728383926541,0.0437,62519.0,62518.0,0.081996]
[1728383926741,0.013,62519.0,62518.0,0.081996]
[1728383928645,0.013,62519.0,62518.0,0.201996]
[1728383929450,0.07866749,62519.0,62518.0,0.16247581]
[1728383936657,0.15866249,62519.0,62518.0,0.04247581]
[1728383936859,0.15866249,62519.0,62518.0,0.002]
[1728383937353,0.22326249,62519.0,62518.0,0.002]
[1728383937560,0.157595,62519.0,62518.0,0.002]
[1728383946565,0.22326249,62519.0,62518.0,0.002]
[1728383946766,0.58406249,62519.0,62518.0,0.002]
[1728383948164,0.080007,62514.0,62513.0,0.080003]
[1728383948461,0.080012,62508.0,62507.0,0.080008]
[1728383948662,0.26567949,62508.0,62507.0,0.080008]
[1728383948856,0.26567949,62508.0,62507.0,0.06832509]
[1728383949056,0.29587949,62508.0,62507.0,0.06149259]
[1728383949954,0.29887949,62508.0,62507.0,0.06249259]
[1728383951158,0.30387949,62508.0,62507.0,0.06349259]
[1728383952258,0.238212,62508.0,62507.0,0.06349259]
[1728383952754,0.008,62508.0,62507.0,0.18349259]
[1728383953061,0.008,62508.0,62507.0,1.26345259]
[1728383955559,0.008,62508.0,62507.0,1.62425259]
[1728383956369,0.008,62508.0,62507.0,1.50425259]
[1728383956668,0.008,62508.0,62507.0,1.02425259]
[1728383957967,0.008,62508.0,62507.0,1.62425259]
[1728383958169,0.008,62508.0,62507.0,1.02425259]
[1728383958369,0.008,62508.0,62507.0,1.62425259]
[1728383958672,0.008,62508.0,62507.0,0.66345259]
[1728383958862,0.008,62508.0,62507.0,1.02425259]
[1728383959171,0.008,62508.0,62507.0,1.62425259]
[1728383959365,0.008,62508.0,62507.0,1.02425259]
[1728383960970,0.008,62508.0,62507.0,0.54429259]
[1728383962065,0.008,62508.0,62507.0,1.02425259]
[1728383962265,0.008,62508.0,62507.0,1.62425259]
[1728383962659,0.008,62508.0,62507.0,1.02425259]
[1728383962859,0.008,62508.0,62507.0,0.54429259]
[1728383964168,0.008,62508.0,62507.0,0.18349259]
[1728383969176,0.008,62508.0,62507.0,0.21589259]
[1728383972583,0.008,62508.0,62507.0,0.57669259]
[1728383978484,0.008,62508.0,62507.0,0.21589259]
[1728383978777,0.008,62508.0,62507.0,0.57669259]
[1728383981180,0.008,62508.0,62507.0,0.54429259]
[1728383981571,0.008,62508.0,62507.0,0.18349259]
[1728383981779,0.008,62508.0,62507.0,0.54429259]
[1728383983086,0.008,62508.0,62507.0,0.42429259]
[1728383983584,0.008,62508.0,62507.0,0.06349259]
[1728383983585,0.1015,62508.0,62507.0,0.06349259]
[1728383986182,0.13014229,62508.0,62507.0,0.06349259]
[1728383987979,0.21015129,62508.0,62507.0,0.06349259]
[1728383995991,0.080016,62503.0,62502.0,0.080017]
[1728383996303,0.200016,62503.0,62502.0,0.080017]
[1728383997080,0.205016,62503.0,62502.0,0.081017]
[1728383998593,0.209016,62503.0,62502.0,0.082017]
[1728383998786,0.089016,62503.0,62502.0,0.082017]
[1728383998984,0.089016,62503.0,62502.0,0.202017]
[1728384000688,0.089016,62503.0,62502.0,0.082017]
[1728384000890,0.089016,62503.0,62502.0,0.002]
[1728384001101,0.080026,62495.0,62494.0,0.00239964]
[1728384001289,0.560826,62495.0,62494.0,0.00239964]
[1728384002495,0.569826,62495.0,62494.0,0.002]
[1728384003084,0.569826,62495.0,62488.0,0.080035]
[1728384003085,0.080036,62489.0,62488.0,0.080035]
[1728384004104,0.200036,62489.0,62488.0,0.080035]
[1728384004300,0.200036,62489.0,62488.0,0.079995]
[1728384004998,0.201036,62489.0,62488.0,0.093995]
[1728384005505,0.202036,62489.0,62488.0,0.107995]
[1728384006297,0.202036,62489.0,62488.0,0.028]
[1728384006800,0.080043,62482.0,62481.0,0.080044]
[1728384007000,0.560843,62482.0,62481.0,0.080044]
[1728384008699,0.561843,62482.0,62481.0,0.088044]
[1728384008895,0.562843,62482.0,62481.0,0.095044]
[1728384009101,0.562843,62482.0,62475.0,0.00240104]
[1728384009306,0.20005,62476.0,62475.0,0.00240104]
[1728384010203,0.20005,62476.0,62475.0,0.01040104]
[1728384010403,0.20005,62476.0,62475.0,0.01740104]
[1728384011804,0.20105,62476.0,62475.0,0.00940104]
[1728384012007,0.20205,62476.0,62475.0,0.00240104]
[1728384012198,0.56185,62476.0,62475.0,0.00240104]
[1728384012404,0.62285,62476.0,62475.0,0.00240104]
[1728384012703,0.62185,62476.0,62475.0,0.00240104]
[1728384012910,0.62285,62476.0,62475.0,0.00240104]
[1728384014198,0.62285,62476.0,62473.0,0.080054]
[1728384014199,0.08006,62471.0,62470.0,0.080058]
[1728384014400,0.26006,62471.0,62470.0,0.080058]
[1728384015403,0.26206,62471.0,62470.0,0.081058]
[1728384016899,0.62286,62471.0,62467.0,0.080061]
[1728384017200,0.260061,62468.0,62467.0,0.080061]
[1728384018400,0.080069,62463.0,62462.0,0.080066]
[1728384018604,0.260069,62463.0,62462.0,0.080066]
[1728384019801,0.261069,62463.0,62462.0,0.080066]
[1728384021098,0.2913795,62463.0,62462.0,0.080066]
[1728384022905,0.6521795,62463.0,62462.0,0.080066]
[1728384025109,0.442869,62463.0,62462.0,0.080066]
[1728384028510,0.442869,62463.0,62462.0,0.12811174]
[1728384029208,0.442869,62463.0,62462.0,0.12787887]
[1728384029409,0.442869,62463.0,62462.0,0.080066]
[1728384029602,0.080071,62460.0,62459.0,0.1438215]
[1728384029802,0.04000018,62460.0,62459.0,0.080071]
[1728384031305,0.04200018,62460.0,62459.0,0.080071]
[1728384032809,0.00116,62463.0,62459.0,0.5046215]
[1728384033009,0.00240171,62476.0,62470.0,0.080058]
[1728384033204,0.00240171,62476.0,62475.0,0.080052]
[1728384033406,0.00240171,62476.0,62475.0,0.32385838]
[1728384033608,0.00240171,62476.0,62475.0,0.260052]
[1728384033802,0.00240171,62476.0,62475.0,0.32386951]
[1728384034203,0.00240171,62476.0,62475.0,0.260052]
[1728384034408,0.0314,62489.0,62475.0,1.77207258]
[1728384034606,0.0314,62489.0,62487.0,0.080035]
[1728384034607,0.080036,62488.0,62487.0,0.080035]
[1728384035608,0.094036,62488.0,62487.0,0.080035]
[1728384036114,0.108036,62488.0,62487.0,0.080035]
[1728384036816,0.014,62488.0,62487.0,0.080035]
[1728384037026,0.028,62488.0,62487.0,0.080035]
[1728384037315,0.028,62488.0,62487.0,0.260035]
[1728384038115,0.028,62488.0,62487.0,0.080035]
[1728384039012,0.108035,62488.0,62487.0,0.080035]
[1728384041722,0.3888,62488.0,62477.0,0.080045]
[1728384042012,0.3608,62478.0,62477.0,0.080045]
[1728384043517,0.006,62478.0,62477.0,0.080045]
[1728384044506,0.086048,62478.0,62477.0,0.080045]
[1728384046021,0.092048,62478.0,62477.0,0.080045]
[1728384049721,0.092008,62478.0,62477.0,0.080045]
[1728384053935,0.12133068,62478.0,62477.0,0.080045]
[1728384054816,0.080055,62475.0,62474.0,0.080052]
[1728384055825,0.081055,62475.0,62474.0,0.080052]
[1728384056020,0.082055,62475.0,62474.0,0.081052]
[1728384062733,0.262055,62475.0,62474.0,0.001]
[1728384064337,0.002,62475.0,62474.0,0.001]
[1728384064531,0.002,62475.0,62474.0,0.081053]
[1728384065537,0.002,62475.0,62474.0,0.001]
[1728384065843,0.082052,62475.0,62474.0,0.001]
[1728384067125,0.442852,62475.0,62474.0,0.001]
[1728384067328,0.082052,62475.0,62474.0,0.001]
[1728384090154,0.082052,62475.0,62474.0,0.081053]
[1728384090356,0.082052,62475.0,62474.0,0.06833948]
[1728384090565,0.080055,62472.0,62471.0,0.200056]
[1728384092253,0.081055,62472.0,62471.0,0.200056]
[1728384092958,0.082055,62472.0,62471.0,0.200056]
[1728384093749,0.082055,62472.0,62471.0,0.080056]
[1728384094258,0.002,62472.0,62471.0,0.200056]
[1728384105264,0.002,62472.0,62471.0,0.080056]
[1728384105470,0.002,62472.0,62471.0,0.200056]
[1728384114970,0.002,62472.0,62471.0,0.080056]
[1728384115176,0.002,62472.0,62471.0,0.200056]
[1728384119871,0.002,62472.0,62471.0,0.560856]
[1728384132191,0.002,62472.0,62471.0,0.440856]
[1728384132379,0.002,62472.0,62471.0,0.560856]
[1728384133782,0.3608,62482.0,62481.0,0.080044]
[1728384133986,0.3608,62482.0,62481.0,0.200044]
[1728384134386,0.0302,62485.0,62484.0,0.08004]
[1728384134588,0.0302,62485.0,62484.0,0.20004]
[1728384135289,0.110239,62485.0,62484.0,0.20004]
[1728384135587,0.110239,62485.0,62484.0,0.08004]
[1728384135781,0.110239,62485.0,62481.0,0.080043]
[1728384135782,0.080046,62482.0,62481.0,0.080043]
[1728384137190,0.100046,62482.0,62481.0,0.080043]
[1728384138590,0.100046,62482.0,62478.0,0.080047]
[1728384138786,0.080049,62477.0,62476.0,0.08005]
[1728384139191,0.080049,62477.0,62476.0,0.07615]
[1728384140387,0.081049,62477.0,62476.0,0.07715]
[1728384140596,0.082049,62477.0,62476.0,0.07815]
[1728384141296,0.002,62477.0,62476.0,0.07815]
[1728384141500,0.082049,62477.0,62476.0,0.07815]
[1728384141891,0.002,62477.0,62476.0,0.07815]
[1728384142087,0.082049,62477.0,62476.0,0.07815]
[1728384149307,0.082049,62477.0,62476.0,0.19815]
[1728384149707,0.082049,62477.0,62476.0,0.07815]
[1728384150712,0.082049,62477.0,62476.0,0.19815]
[1728384151102,0.002,62477.0,62476.0,0.19815]
[1728384154715,0.002,62477.0,62476.0,0.19811]
[1728384155112,0.002,62477.0,62476.0,0.55891]
[1728384155818,0.02922016,62487.0,62486.0,0.080035]
[1728384156023,0.08003,62493.0,62492.0,0.080028]
[1728384156225,0.08003,62493.0,62492.0,0.200028]
[1728384157224,0.08003,62493.0,62492.0,0.080028]
[1728384158628,0.028,62493.0,62492.0,0.200028]
[1728384159318,0.108028,62493.0,62492.0,0.200028]
[1728384162633,0.108028,62493.0,62492.0,0.080028]
[1728384162931,0.108028,62493.0,62492.0,0.200028]
[1728384163425,0.028,62493.0,62492.0,0.200028]
[1728384164433,0.108028,62493.0,62492.0,0.200028]
[1728384164628,0.028,62493.0,62492.0,0.200028]
[1728384169033,0.00240091,62495.0,62494.0,0.080027]
[1728384169640,0.00236091,62495.0,62494.0,0.080027]
[1728384170341,0.3608,62501.0,62500.0,0.08002]
[1728384170531,0.3608,62501.0,62500.0,0.20002]
[1728384171443,0.10905834,62505.0,62504.0,0.080014]
[1728384171744,0.10905834,62505.0,62504.0,0.200014]
[1728384172639,0.0315,62507.0,62506.0,0.080012]
[1728384172836,0.111511,62507.0,62506.0,0.080012]
[1728384174134,0.0315,62507.0,62506.0,0.080012]
[1728384174442,0.0445,62507.0,62506.0,0.081012]
[1728384174646,0.0575,62507.0,62506.0,0.082012]
[1728384174837,0.0864576,62507.0,62506.0,0.082012]
[1728384175546,0.1664686,62507.0,62506.0,0.082012]
[1728384178049,0.0864576,62507.0,62506.0,0.082012]
[1728384178252,0.1664686,62507.0,62506.0,0.082012]
[1728384181745,0.137511,62507.0,62506.0,0.082012]
[1728384182057,0.3608,62518.0,62517.0,0.079998]
[1728384182250,0.3608,62518.0,62517.0,0.199998]
[1728384182849,0.079994,62520.0,62517.0,0.12]
[1728384183152,0.079994,62520.0,62519.0,0.079995]
[1728384183553,0.02822147,62521.0,62517.0,0.12]
[1728384183753,0.079992,62522.0,62521.0,0.07999]
[1728384185353,0.079992,62522.0,62521.0,0.08199]
[1728384190658,0.079992,62522.0,62521.0,0.08099]
[1728384190852,0.079992,62522.0,62521.0,0.08199]
[1728384193058,0.079992,62522.0,62521.0,0.08099]
[1728384193259,0.079992,62522.0,62521.0,0.08199]
[1728384203361,0.079989,62524.0,62523.0,0.07999]
[1728384203554,0.39000168,62525.0,62524.0,0.079989]
[1728384204663,0.46998968,62525.0,62524.0,0.079989]
[1728384205268,0.46998968,62525.0,62524.0,0.080989]
[1728384206169,0.10918968,62525.0,62524.0,0.080989]
[1728384206369,0.46998968,62525.0,62524.0,0.081989]
[1728384207770,0.10918968,62525.0,62524.0,0.081989]
[1728384207972,0.46998968,62525.0,62524.0,0.081989]
[1728384208366,0.0332,62530.0,62524.0,0.081989]
[1728384208567,0.0314,62534.0,62529.0,0.12]
[1728384208773,0.08237894,62532.0,62531.0,0.07998]
[1728384209674,0.11093123,62532.0,62531.0,0.07998]
[1728384211371,0.11093123,62532.0,62531.0,0.08098]
[1728384211777,0.23093123,62532.0,62531.0,0.08198]
[1728384214180,0.23093123,62532.0,62531.0,0.002]
[1728384216081,0.59173123,62532.0,62531.0,0.002]
[1728384217883,0.23093123,62532.0,62531.0,0.002]
[1728384218084,0.59173123,62532.0,62531.0,0.002]
[1728384220894,0.47173123,62532.0,62531.0,0.08198]
[1728384226991,0.11093123,62532.0,62531.0,0.08198]
[1728384227293,0.47173123,62532.0,62531.0,0.08198]
[1728384240397,0.39175223,62532.0,62531.0,0.20198]
[1728384245311,0.03095223,62532.0,62531.0,0.20198]
[1728384246705,0.03095223,62532.0,62531.0,0.16274589]
[1728384252011,0.096606,62532.0,62531.0,0.16274589]
[1728384252407,0.096606,62532.0,62531.0,0.04274589]
[1728384252720,0.096606,62532.0,62531.0,0.16274589]
[1728384253219,0.03095223,62532.0,62531.0,0.16274589]
[1728384256119,0.11093123,62532.0,62531.0,0.16274589]
[1728384256419,0.11093123,62532.0,62531.0,0.04274589]
[1728384262420,0.47173123,62532.0,62531.0,0.04274589]
[1728384262614,0.47173123,62532.0,62531.0,0.03442991]
[1728384267024,0.53738676,62532.0,62531.0,0.03442991]
[1728384270925,0.53738676,62532.0,62526.0,0.08334091]
[1728384271230,0.53738676,62532.0,62524.0,0.0294058]
[1728384271231,0.06565553,62531.0,62524.0,0.0294058]
[1728384271428,0.06565553,62531.0,62523.0,0.079989]
[1728384271429,0.14563653,62530.0,62529.0,0.079981]
[1728384272531,0.14663653,62530.0,62529.0,0.080981]
[1728384273234,0.14763653,62530.0,62529.0,0.081981]
[1728384273437,0.06765553,62530.0,62529.0,0.201981]
[1728384273733,0.06765553,62530.0,62529.0,0.562781]
[1728384275029,0.002,62530.0,62529.0,0.562781]
[1728384277138,0.002,62530.0,62529.0,0.46605962]
[1728384277326,0.002,62530.0,62529.0,0.54604062]
[1728384278227,0.002,62530.0,62529.0,0.18524062]
[1728384286329,0.002,62530.0,62529.0,0.15950024]
[1728384290240,0.081981,62530.0,62529.0,0.15950024]
[1728384291846,0.002,62530.0,62529.0,0.15950024]
[1728384294234,0.14763653,62530.0,62529.0,0.15950024]
[1728384296144,0.06765553,62530.0,62523.0,0.10919089]
[1728384296344,0.079993,62524.0,62523.0,0.079989]
[1728384296645,0.079984,62528.0,62527.0,0.079984]
[1728384296646,0.079985,62528.0,62527.0,0.079984]
[1728384296842,0.079985,62528.0,62527.0,0.199984]
[1728384298246,0.083985,62528.0,62527.0,0.201984]
[1728384299044,0.203985,62528.0,62527.0,0.002]
[1728384300945,0.203985,62528.0,62513.0,0.3608]
[1728384300946,0.004,62528.0,62507.0,0.3608]
[1728384301148,0.3608,62522.0,62517.0,0.12]
[1728384301351,0.3608,62522.0,62507.0,0.3608]
[1728384301352,0.3608,62522.0,62521.0,0.12]
[1728384301653,0.079993,62521.0,62518.0,0.12]
[1728384301842,0.440791,62522.0,62513.0,0.080002]
[1728384301843,0.12,62520.0,62513.0,0.080002]
[1728384302037,0.080005,62512.0,62509.0,0.12]
[1728384302251,0.080005,62512.0,62511.0,0.080005]
[1728384303240,0.440802,62514.0,62513.0,0.080003]
[1728384304461,0.440802,62514.0,62513.0,0.079963]
[1728384305153,0.444802,62514.0,62513.0,0.079963]
[1728384305454,0.008,62514.0,62513.0,0.079963]
[1728384307050,0.004,62514.0,62513.0,0.079963]
[1728384307251,0.007,62514.0,62513.0,0.079963]
[1728384307951,0.004,62514.0,62513.0,0.093963]
[1728384308150,0.3608,62528.0,62524.0,0.079989]
[1728384308453,0.112686,62527.0,62524.0,0.199989]
[1728384309350,0.00539963,62525.0,62524.0,0.200989]
[1728384310349,0.00839963,62525.0,62524.0,0.201989]
[1728384315058,0.3608,62541.0,62525.0,0.4798]
[1728384315359,0.079971,62538.0,62537.0,0.199971]
[1728384315749,0.079971,62538.0,62537.0,0.079971]
[1728384316460,0.082971,62538.0,62537.0,0.080971]
[1728384317157,0.003,62538.0,62537.0,0.081971]
[1728384317861,0.003,62538.0,62537.0,0.201971]
[1728384320368,0.06864834,62538.0,62537.0,0.201971]
[1728384321268,0.003,62538.0,62537.0,0.201971]
[1728384321468,0.06864834,62538.0,62537.0,0.201971]
[1728384322165,0.09803213,62538.0,62537.0,0.201971]
[1728384322560,0.29800313,62538.0,62537.0,0.081971]
[1728384324465,0.29800313,62538.0,62537.0,0.06630103]
[1728384325265,0.26861934,62538.0,62537.0,0.06630103]
[1728384325470,0.06864834,62538.0,62537.0,0.18630103]
[1728384326862,0.06864834,62538.0,62537.0,0.122]
[1728384327069,0.06864834,62538.0,62537.0,0.201971]
[1728384327267,0.00239897,62545.0,62544.0,0.079963]
[1728384327472,0.00239897,62545.0,62544.0,0.199963]
[1728384327863,0.00239897,62545.0,62544.0,0.079963]
[1728384328759,0.00239897,62545.0,62544.0,0.080963]
[1728384329068,0.00239897,62545.0,62544.0,0.081963]
[1728384329669,0.00239897,62545.0,62544.0,0.201963]
[1728384336673,0.079951,62554.0,62553.0,0.07995]
[1728384336878,0.079949,62556.0,62554.0,0.07995]
[1728384337573,0.1526,62558.0,62554.0,0.07995]
[1728384337779,0.079948,62556.0,62554.0,0.07995]
[1728384339387,0.079948,62556.0,62554.0,0.08095]
[1728384339887,0.079948,62556.0,62554.0,0.08195]
[1728384340477,0.1526,62558.0,62554.0,0.08195]
[1728384340985,0.4808,62555.0,62554.0,0.08195]
[1728384341178,0.560749,62555.0,62554.0,0.002]
[1728384342485,0.62638394,62555.0,62554.0,0.002]
[1728384343595,0.42643494,62555.0,62554.0,0.20195]
[1728384349385,0.42643494,62555.0,62554.0,0.20095]
[1728384349585,0.42643494,62555.0,62554.0,0.20195]
[1728384349902,0.42635494,62555.0,62554.0,0.20195]
[1728384350497,0.3608,62555.0,62554.0,0.20195]
[1728384352796,0.3608,62555.0,62554.0,0.122]
[1728384353487,0.3608,62555.0,62554.0,0.20195]
[1728384357406,0.06562836,62555.0,62554.0,0.18175501]
[1728384358307,0.13952747,62555.0,62554.0,0.18175501]
[1728384361112,0.13952747,62555.0,62554.0,0.05172358]
[1728384361301,0.13952747,62555.0,62554.0,0.17172358]
[1728384361497,0.13952747,62555.0,62554.0,0.10436519]
[1728384361706,0.13952747,62555.0,62554.0,0.18431519]
[1728384361911,0.13952747,62555.0,62554.0,0.07995]
[1728384362209,0.50032747,62555.0,62554.0,0.19995]
[1728384363211,0.42642836,62555.0,62554.0,0.19995]
[1728384364103,0.50637736,62555.0,62554.0,0.19995]
[1728384364517,0.079958,62549.0,62548.0,0.079954]
[1728384364707,0.199958,62549.0,62548.0,0.079954]
[1728384364910,0.560758,62549.0,62548.0,0.079954]
[1728384365313,0.62638636,62549.0,62548.0,0.079954]
[1728384365509,0.560758,62549.0,62548.0,0.079954]
[1728384366310,0.562758,62549.0,62548.0,0.080954]
[1728384367316,0.562758,62549.0,62548.0,0.081954]
[1728384367611,0.562758,62549.0,62548.0,0.04403471]
[1728384368114,0.562758,62549.0,62548.0,0.002]
[1728384372211,0.59153991,62549.0,62548.0,0.002]
[1728384372407,0.65716827,62549.0,62543.0,0.02821146]
[1728384372616,0.079963,62545.0,62544.0,0.079961]
[1728384372917,0.14559136,62545.0,62544.0,0.079961]
[1728384373223,0.079963,62545.0,62544.0,0.079961]
[1728384373510,0.079963,62545.0,62544.0,0.199961]
[1728384374309,0.079963,62545.0,62544.0,0.200961]
[1728384375616,0.079963,62545.0,62544.0,0.080961]
[1728384375917,0.081963,62545.0,62544.0,0.081961]
[1728384378721,0.081963,62545.0,62544.0,0.201961]
[1728384379617,0.002,62545.0,62544.0,0.201961]
[1728384382324,0.3608,62556.0,62555.0,0.079949]
[1728384382624,0.3608,62556.0,62555.0,0.199949]
[1728384382826,0.36884501,62556.0,62555.0,0.199949]
[1728384383623,0.002,62556.0,62555.0,0.200949]
[1728384383925,0.46940663,62562.0,62561.0,0.079941]
[1728384384123,0.47745164,62562.0,62561.0,0.199941]
[1728384385120,0.47745164,62562.0,62561.0,0.201941]
[1728384385519,0.47745164,62562.0,62561.0,0.081941]
[1728384388830,0.11665164,62562.0,62561.0,0.081941]
[1728384391529,0.03671064,62562.0,62561.0,0.081941]
[1728384391726,0.03671064,62562.0,62561.0,0.115141]
[1728384392623,0.02866563,62562.0,62561.0,0.115141]
[1728384392818,0.3608,62563.0,62561.0,0.0352]
[1728384393025,0.3608,62563.0,62562.0,0.07994]
[1728384394127,0.440739,62563.0,62562.0,0.07994]
[1728384394330,0.440739,62563.0,62562.0,0.08094]
[1728384395140,0.440739,62563.0,62562.0,0.08194]
[1728384395427,0.50636278,62563.0,62562.0,0.08194]
[1728384398932,0.06562378,62563.0,62562.0,0.08194]
[1728384399132,0.13951773,62563.0,62562.0,0.07994]
[1728384399328,0.08961773,62563.0,62562.0,0.19994]
[1728384399530,0.08232292,62575.0,62574.0,0.079925]
[1728384399835,0.08797001,62575.0,62574.0,0.199925]
[1728384400247,0.08216313,62580.0,62574.0,0.199925]
[1728384400428,0.08216313,62580.0,62578.0,0.19992]
[1728384400429,0.15603729,62579.0,62578.0,0.19992]
[1728384400736,0.15379216,62579.0,62578.0,0.17992801]
[1728384400939,0.16183717,62579.0,62578.0,0.17992801]
[1728384401439,0.14752462,62579.0,62578.0,0.17992801]
[1728384401833,0.13947961,62579.0,62578.0,0.17992801]
[1728384402423,0.16183717,62579.0,62578.0,0.06092801]
[1728384402632,0.08796301,62579.0,62578.0,0.06092801]
[1728384403433,0.08896301,62579.0,62578.0,0.06192801]
[1728384405125,0.20896301,62579.0,62578.0,0.06192801]
[1728384408235,0.12904501,62579.0,62578.0,0.06192801]
[1728384408434,0.20896301,62579.0,62578.0,0.06192801]
[1728384409335,0.00904501,62579.0,62578.0,0.18192801]
[1728384409638,0.001,62579.0,62578.0,0.18192801]
[1728384410539,0.06660545,62579.0,62578.0,0.18192801]
[1728384415442,0.06946559,62579.0,62578.0,0.18192801]
[1728384416943,0.14938359,62579.0,62578.0,0.18192801]
[1728384417437,0.14938359,62579.0,62577.0,0.3608]
[1728384417438,0.22325395,62579.0,62577.0,0.29710942]